bitfinex-derivatives/quotes_SOLF0:USTF0_20250719
["timestamp","ask_amount","ask_price","bid_price","bid_amount"]
[1752903913421,108.66928635,177.61,177.6,8.6464]
[1752903913625,3.08,177.6,177.56,3.02]
[1752903913819,4.90928635,177.57,177.56,3.02]
[1752903914119,3.08,177.56,177.54,3.02]
[1752903914321,3.08,177.56,177.55,8.648]
[1752903915418,4.90928635,177.56,177.55,8.648]
[1752903916523,3.08,177.65,177.53,4.84928635]
[1752903916723,1.82928635,177.6,177.54,3.02]
[1752903916915,4.90928635,177.6,177.54,3.02]
[1752903917419,4.90928635,177.58,177.54,3.02]
[1752903917816,1.82928635,177.58,177.54,3.02]
[1752903918222,1.82928635,177.58,177.57,8.6473]
[1752903918819,1.82928635,177.58,177.52,7.7401728]
[1752903919018,1.82928635,177.53,177.47,4.7201728]
[1752903919224,3.08,177.52,177.48,3.02]
[1752903919420,3.08,177.52,177.51,5.6292]
[1752903919724,3.08,177.52,177.51,8.6492]
[1752903920117,1.82928635,177.55,177.51,3.02]
[1752903920725,4.90928635,177.55,177.51,3.02]
[1752903921125,3.08,177.54,177.51,3.02]
[1752903921426,3.08,177.53,177.51,3.02]
[1752903922526,3.08,177.53,177.52,8.6489]
[1752903931827,3.08,177.53,177.52,5.6289]
[1752903932228,3.08,177.53,177.51,5.6291]
[1752903932425,1.82928635,177.52,177.51,5.6291]
[1752903932631,3.21,177.51,177.49,3.15]
[1752903932831,3.21,177.51,177.44,11.2624]
[1752903933031,3.21,177.51,177.47,3.15]
[1752903933227,5.03928635,177.49,177.47,3.15]
[1752903933427,5.03928635,177.49,177.43,3.15]
[1752903933633,1.82928635,177.44,177.43,3.15]
[1752903934034,3.21,177.45,177.44,5.6314]
[1752903934233,5.03928635,177.48,177.44,3.15]
[1752903934438,3.21,177.47,177.44,3.15]
[1752903934635,3.21,177.47,177.46,5.6306]
[1752903934836,3.21,177.47,177.46,8.7806]
[1752903935835,3.21,177.47,177.45,8.781]
[1752903936041,5.03928635,177.46,177.43,3.15]
[1752903936236,3.21,177.45,177.44,3.15]
[1752903936740,3.21,177.45,177.42,3.15]
[1752903936940,105.58928635,177.52,177.42,3.15]
[1752903936941,1.82928635,177.44,177.42,3.15]
[1752903937141,3.21,177.43,177.42,3.15]
[1752903937341,3.21,177.43,177.42,8.7821]
[1752903937543,5.03928635,177.43,177.42,8.7821]
[1752903938142,5.03928635,177.44,177.43,8.7818]
[1752903938538,1.82928635,177.44,177.43,8.7818]
[1752903938840,5.03928635,177.46,177.43,3.15]
[1752903939238,5.03928635,177.46,177.45,8.7811]
[1752903939646,3.21,177.46,177.45,8.7811]
[1752903939843,5.03928635,177.46,177.45,8.7811]
[1752903940642,1.82928635,177.46,177.45,8.7811]
[1752903940843,5.03928635,177.48,177.45,3.15]
[1752903941240,5.03928635,177.48,177.47,5.6305]
[1752903941437,3.21,177.48,177.47,8.7805]
[1752903941637,5.03928635,177.48,177.47,8.7805]
[1752903942046,3.21,177.5,177.49,5.6299]
[1752903942342,5.03928635,177.5,177.49,8.7799]
[1752903944645,1.82928635,177.5,177.49,8.7799]
[1752903944837,5.03928635,177.52,177.51,8.7792]
[1752903947451,5.03928635,177.52,177.51,5.6292]
[1752903947652,3.21,177.51,177.5,5.6294]
[1752903950253,3.21,177.51,177.5,8.7794]
[1752903961066,5.6276,177.57,177.53,8.7284]
[1752903961267,1.82928635,177.54,177.53,8.7284]
[1752903961560,3.12,177.54,177.53,8.7284]
[1752903961760,378.38,177.6,177.56,8.7276]
[1752903962157,384.0066,177.6,177.56,8.7276]
[1752903962457,3.12,177.59,177.56,8.7276]
[1752903962960,4.94928635,177.57,177.56,8.7276]
[1752903963658,3.12,177.56,177.55,5.6279]
[1752903963970,4.94928635,177.56,177.55,5.6279]
[1752903965365,3.12,177.54,177.51,3.1]
[1752903965568,1.82928635,177.59,177.44,1.82928635]
[1752903965569,3.12,177.51,177.45,3.1]
[1752903965769,4.94928635,177.49,177.45,3.1]
[1752903966270,4.94928635,177.49,177.48,8.7302]
[1752903966969,4.94928635,177.49,177.48,5.6302]
[1752903967469,3.12,177.48,177.45,3.1]
[1752903967763,1.82928635,177.46,177.45,3.1]
[1752903967964,1.82928635,177.46,177.42,3.1]
[1752903968171,1.82928635,177.52,177.42,3.1]
[1752903968172,1.82928635,177.43,177.42,3.1]
[1752903968773,1.82928635,177.43,177.42,8.7321]
[1752903968973,1.82928635,177.45,177.42,3.1]
[1752903969570,3.12,177.45,177.44,8.7314]
[1752903969769,4.94928635,177.45,177.44,8.7314]
[1752903972174,1.82928635,177.45,177.44,8.7314]
[1752903974372,4.94928635,177.45,177.44,8.7314]
[1752903979478,1.82928635,177.46,177.4,6.5517409]
[1752903979775,1.82928635,177.46,177.41,4.72245455]
[1752903980173,1.82928635,177.46,177.42,3.1]
[1752903980374,1.82928635,177.46,177.45,5.6311]
[1752903980571,1.82928635,177.46,177.45,8.7311]
[1752903982181,4.94928635,177.48,177.47,8.7305]
[1752903984690,1.82928635,177.48,177.47,8.7305]
[1752903984988,4.87928635,177.5,177.49,5.6299]
[1752903985185,1.82928635,177.51,177.49,3.12]
[1752903985480,4.87928635,177.51,177.49,3.12]
[1752903986387,1.82928635,177.51,177.49,3.12]
[1752903986581,3.05,177.5,177.49,8.7499]
[1752903992293,3.05,177.5,177.49,5.6299]
[1752903993585,3.05,177.5,177.49,8.7499]
[1752903997795,3.05,177.5,177.49,5.6299]
[1752903998391,3.05,177.5,177.49,8.7499]
[1752904009503,106.77,177.52,177.51,5.6292]
[1752904009795,108.59928635,177.52,177.51,8.7492]
[1752904009997,105.54928635,177.52,177.51,8.7492]
[1752904010196,4.87928635,177.54,177.53,5.6286]
[1752904010402,4.87928635,177.54,177.53,8.7486]
[1752904012001,105.46928635,177.56,177.55,5.628]
[1752904012198,108.51928635,177.56,177.55,8.748]
[1752904014304,108.51928635,177.56,177.55,5.628]
[1752904015701,108.51928635,177.56,177.55,8.818]
[1752904016901,108.51928635,177.56,177.55,5.628]
[1752904018302,108.51928635,177.56,177.55,8.818]
[1752904023309,3.09,177.55,177.53,3.19]
[1752904023514,3.09,177.53,177.5,3.19]
[1752904023715,4.91928635,177.51,177.5,3.19]
[1752904024815,1.82928635,177.51,177.5,8.8195]
[1752904025013,1.82928635,177.59,177.45,6.5517409]
[1752904025014,1.82928635,177.55,177.51,3.19]
[1752904025212,108.49928635,177.55,177.51,3.19]
[1752904025615,108.49928635,177.55,177.54,8.8183]
[1752904028320,108.49928635,177.55,177.54,5.6283]
[1752904029714,3.09,177.54,177.49,3.19]
[1752904030017,3.09,177.54,177.5,3.19]
[1752904030219,3.09,177.54,177.51,5.629]
[1752904030908,3.09,177.53,177.51,5.629]
[1752904031112,1.82928635,177.52,177.51,5.629]
[1752904031317,4.91928635,177.52,177.51,5.629]
[1752904032014,3.09,177.51,177.43,4.72245455]
[1752904032218,3.09,177.49,177.47,3.19]
[1752904032410,4.91928635,177.48,177.47,3.19]
[1752904033030,3.09,177.47,177.46,8.8208]
[1752904034319,106.65,177.5,177.49,8.8199]
[1752904034520,108.47928635,177.5,177.49,8.8199]
[1752904043125,108.47928635,177.5,177.49,5.6299]
[1752904044522,108.47928635,177.5,177.49,8.7099]
[1752904045727,108.47928635,177.5,177.49,5.6299]
[1752904045929,3.15,177.49,177.48,5.63]
[1752904046522,3.15,177.49,177.47,5.6304]
[1752904046725,3.15,177.47,177.46,3.08]
[1752904047028,107.86324774,177.47,177.46,8.7108]
[1752904049028,108.52315329,177.47,177.46,8.7108]
[1752904056231,108.52315329,177.47,177.44,3.08]
[1752904056437,4.98315329,177.45,177.44,3.08]
[1752904056836,4.98315329,177.45,177.44,8.7114]
[1752904058135,1.83315329,177.45,177.44,8.7114]
[1752904058831,4.98315329,177.45,177.44,8.7114]
[1752904061537,4.98315329,177.45,177.44,5.6314]
[1752904062341,3.15,177.44,177.42,3.08]
[1752904062543,3.15,177.44,177.37,11.2672]
[1752904062544,4.98315329,177.43,177.37,11.2672]
[1752904062743,4.98315329,177.43,177.42,5.6321]
[1752904062945,4.98315329,177.43,177.42,8.7121]
[1752904064249,3.15,177.45,177.44,8.7114]
[1752904064547,4.98315329,177.46,177.44,3.08]
[1752904065553,4.98315329,177.46,177.45,5.6311]
[1752904065751,4.98315329,177.46,177.45,8.7111]
[1752904067056,1.83315329,177.46,177.45,8.7111]
[1752904068555,1.83315329,177.53,177.46,3.08]
[1752904069057,3.15,177.52,177.51,8.709]
[1752904069258,4.32234252,177.52,177.51,8.709]
[1752904069958,4.32234252,177.52,177.51,3.08]
[1752904070256,3.15,177.51,177.5,8.7094]
[1752904070551,4.32234252,177.51,177.5,8.7094]
[1752904071055,4.98193475,177.52,177.51,5.6292]
[1752904071357,4.98193475,177.52,177.51,8.7092]
[1752904074254,3.15,177.52,177.51,8.7092]
[1752904074452,4.98193475,177.52,177.51,8.7092]
[1752904082067,1.83193475,177.52,177.51,8.7092]
[1752904082468,108.59193475,177.54,177.53,5.6286]
[1752904082665,108.59193475,177.54,177.53,8.8586]
[1752904082860,5.09193475,177.56,177.53,3.23]
[1752904083064,1.83193475,177.56,177.55,3.23]
[1752904083666,5.09193475,177.56,177.55,3.23]
[1752904084169,5.09193475,177.56,177.54,5.6281]
[1752904084369,3.26,177.55,177.5,3.23]
[1752904084570,3.26,177.55,177.5,5.6295]
[1752904084571,1.83193475,177.51,177.5,5.6295]
[1752904084869,5.09193475,177.51,177.5,8.8595]
[1752904086264,108.51193475,177.53,177.52,8.8589]
[1752904087169,108.51193475,177.53,177.52,3.23]
[1752904087971,108.51193475,177.53,177.52,8.8589]
[1752904091063,107.85235338,177.53,177.52,8.8589]
[1752904091672,104.59235338,177.53,177.52,8.8589]
[1752904092075,1.17235338,177.53,177.52,8.8589]
[1752904093874,4.43235338,177.53,177.52,8.8589]
[1752904094972,5.09177048,177.53,177.52,8.8589]
[1752904100881,3.26,177.53,177.52,8.8589]
[1752904104079,3.26,177.53,177.52,5.6289]
[1752904110681,3.26,177.53,177.51,8.9191]
[1752904110882,4.98177048,177.52,177.51,8.9191]
[1752904111988,4.98177048,177.52,177.49,3.29]
[1752904112180,3.15,177.51,177.5,3.29]
[1752904112376,3.15,177.51,177.47,3.29]
[1752904112580,4.98177048,177.48,177.47,3.29]
[1752904112783,1.83177048,177.48,177.47,3.29]
[1752904113986,1.83177048,177.48,177.47,8.9205]
[1752904115688,4.98177048,177.48,177.47,8.9205]
[1752904116989,4.32305738,177.48,177.47,8.9205]
[1752904121185,1.17305738,177.48,177.43,4.70598494]
[1752904121396,1.17305738,177.44,177.42,4.70598494]
[1752904121587,1.17305738,177.43,177.42,4.70598494]
[1752904121786,1.17305738,177.43,177.41,4.70598494]
[1752904122087,1.17305738,177.42,177.41,4.70598494]
[1752904122491,1.17305738,177.42,177.41,3.29]
[1752904122788,1.17305738,177.42,177.41,8.9224]
[1752904126700,4.32305738,177.42,177.41,3.29]
[1752904127801,4.32305738,177.42,177.41,8.9224]
[1752904129399,4.32305738,177.42,177.41,3.29]
[1752904129899,3.15,177.41,177.4,8.9226]
[1752904130201,4.32305738,177.41,177.4,8.9226]
[1752904134005,1.17305738,177.41,177.4,8.9226]
[1752904137814,1.17305738,177.42,177.41,5.6324]
[1752904138012,1.17305738,177.42,177.41,8.6524]
[1752904139210,4.29305738,177.42,177.41,8.6524]
[1752904140116,3.12,177.42,177.41,8.6524]
[1752904140416,3.12,177.43,177.42,5.6319]
[1752904140911,3.12,177.43,177.42,8.6519]
[1752904141618,4.29305738,177.43,177.42,8.6519]
[1752904146115,1.17305738,177.44,177.42,3.02]
[1752904146421,1.17305738,177.43,177.42,3.02]
[1752904146919,1.17305738,177.43,177.42,8.6521]
[1752904149918,4.29305738,177.43,177.42,8.6521]
[1752904158422,4.29305738,177.43,177.42,5.6321]
[1752904158632,3.12,177.42,177.41,8.6522]
[1752904158824,4.29305738,177.42,177.41,8.6522]
[1752904161126,1.17305738,177.42,177.4,10.34724355]
[1752904161330,4.29305738,177.41,177.4,13.36724355]
[1752904162027,4.29305738,177.41,177.4,5.6326]
[1752904163434,4.29305738,177.41,177.4,8.6526]
[1752904166330,4.29305738,177.41,177.4,13.36724355]
[1752904169137,3.12,177.41,177.4,13.36724355]
[1752904169332,4.29305738,177.41,177.4,13.36724355]
[1752904170531,3.12,177.41,177.4,13.36724355]
[1752904170738,4.29305738,177.41,177.4,13.36724355]
[1752904174743,3.12,177.41,177.4,13.36724355]
[1752904174944,4.29305738,177.41,177.4,13.39492519]
[1752904178143,4.29305738,177.41,177.4,8.6526]
[1752904178745,3.05,177.4,177.39,4.74232519]
[1752904179050,3.05,177.39,177.37,7.80232519]
[1752904179246,4.22305738,177.38,177.37,10.37582519]
[1752904179742,1.17305738,177.41,177.38,3.06]
[1752904180049,1.17305738,177.4,177.39,3.06]
[1752904180444,3.05,177.4,177.39,3.06]
[1752904180949,4.22305738,177.42,177.39,3.06]
[1752904181449,4.22305738,177.42,177.39,4.23305738]
[1752904181751,3.05,177.43,177.41,3.06]
[1752904181949,3.05,177.43,177.42,3.06]
[1752904182145,4.22305738,177.45,177.42,4.23305738]
[1752904182350,4.22305738,177.45,177.44,8.6914]
[1752904183049,3.05,177.45,177.44,8.6914]
[1752904183249,3.05,177.44,177.43,8.6916]
[1752904183452,4.22305738,177.44,177.43,8.6916]
[1752904185055,3.05,177.44,177.43,8.6916]
[1752904196163,3.11,177.43,177.42,5.6319]
[1752904197465,3.11,177.43,177.42,8.9419]
[1752904197664,1.8333627,177.46,177.42,3.31]
[1752904197865,1.8333627,177.48,177.43,3.31]
[1752904198068,4.9433627,177.46,177.43,3.31]
[1752904198271,3.11,177.45,177.44,8.9412]
[1752904198470,3.11,177.45,177.44,5.6312]
[1752904198866,3.11,177.45,177.43,5.6317]
[1752904199073,4.9433627,177.44,177.43,5.6317]
[1752904202072,4.9433627,177.44,177.43,8.9417]
[1752904202775,4.9433627,177.44,177.43,5.6317]
[1752904204975,3.11,177.43,177.42,5.6319]
[1752904205474,3.11,177.43,177.37,4.74312902]
[1752904205673,1.8333627,177.41,177.4,3.31]
[1752904205874,3.11,177.4,177.38,3.31]
[1752904206080,4.9433627,177.39,177.38,8.9433]
[1752904206978,4.28419101,177.39,177.38,8.9433]
[1752904208381,3.11,177.38,177.37,8.9436]
[1752904208580,4.28419101,177.38,177.37,8.9436]
[1752904211180,3.11,177.38,177.37,8.9436]
[1752904211380,4.28419101,177.38,177.37,8.9436]
[1752904217485,1.17419101,177.38,177.37,8.9436]
[1752904221194,4.28419101,177.38,177.37,8.9436]
[1752904225292,3.11,177.38,177.37,8.9436]
[1752904225593,4.28419101,177.38,177.37,8.9436]
[1752904226294,1.17419101,177.38,177.37,8.9436]
[1752904228192,3.05,177.39,177.38,5.6333]
[1752904228395,3.05,177.42,177.39,3.14]
[1752904228595,4.22419101,177.4,177.39,3.14]
[1752904229598,4.22419101,177.4,177.39,8.7729]
[1752904230299,4.22419101,177.4,177.39,3.14]
[1752904231297,4.22419101,177.4,177.39,8.773]
[1752904231898,4.22419101,177.4,177.39,5.633]
[1752904238902,3.05,177.39,177.34,3.14]
[1752904239101,1.17419101,177.4,177.34,3.14]
[1752904239102,1.17419101,177.35,177.34,3.14]
[1752904239403,4.22419101,177.35,177.34,3.14]
[1752904239702,4.22419101,177.35,177.34,8.7746]
[1752904246598,3.05,177.35,177.34,8.7746]
[1752904246804,1.17419101,177.35,177.34,8.7746]
[1752904249705,3.05,177.36,177.35,8.7743]
[1752904249905,4.22419101,177.36,177.35,8.7743]
[1752904251409,4.22419101,177.36,177.35,5.6343]
[1752904251604,3.05,177.35,177.34,5.6345]
[1752904251806,4.22419101,177.35,177.34,5.6345]
[1752904252908,4.22419101,177.35,177.34,8.7745]
[1752904253110,3.05,177.34,177.32,3.14]
[1752904253311,4.22419101,177.33,177.32,3.14]
[1752904253810,4.22419101,177.33,177.32,8.7753]
[1752904257308,4.22419101,177.33,177.32,5.6353]
[1752904257505,3.29,177.32,177.31,5.6354]
[1752904257710,4.46419101,177.32,177.31,5.6354]
[1752904258113,4.46419101,177.32,177.31,8.6554]
[1752904259115,3.29,177.31,177.28,3.02]
[1752904259316,4.46419101,177.29,177.28,3.02]
[1752904259915,4.46419101,177.29,177.28,8.6565]
[1752904260411,1.17419101,177.32,177.31,3.02]
[1752904260616,3.29,177.33,177.31,3.02]
[1752904260910,1.17419101,177.32,177.31,3.02]
[1752904261106,1.17419101,177.32,177.31,8.6556]
[1752904262710,4.46419101,177.33,177.32,5.6353]
[1752904262915,4.46419101,177.33,177.32,8.6553]
[1752904268817,196.8289998,177.34,177.33,5.6349]
[1752904269020,194.71319081,177.34,177.33,8.6549]
[1752904269212,1.17419101,177.35,177.33,3.02]
[1752904269723,1.17419101,177.35,177.34,8.6546]
[1752904270016,4.46419101,177.35,177.34,8.6546]
[1752904287444,1.17419101,177.35,177.34,8.6546]
[1752904288143,4.45419101,177.35,177.34,8.6546]
[1752904288342,1.17419101,177.35,177.34,8.6546]
[1752904290745,3.28,177.36,177.35,8.8743]
[1752904291944,4.45419101,177.36,177.35,8.8743]
[1752904295649,106.34,177.38,177.37,8.8737]
[1752904295844,107.51419101,177.38,177.37,8.8737]
[1752904296449,103.06,177.38,177.37,8.8737]
[1752904296747,3.28,177.39,177.3,17.51096975]
[1752904296748,1.17419101,177.39,177.38,8.8733]
[1752904296946,106.24,177.42,177.38,3.24]
[1752904297244,1.17419101,177.42,177.4,3.24]
[1752904298038,1.17419101,177.43,177.4,3.24]
[1752904298849,1.17419101,177.43,177.4,4.41419101]
[1752904299048,1.17419101,177.43,177.42,5.6321]
[1752904299250,1.17419101,177.43,177.42,8.8721]
[1752904299546,4.45419101,177.43,177.42,8.8721]
[1752904301540,3.28,177.43,177.42,8.8721]
[1752904301745,4.45419101,177.43,177.42,8.8721]
[1752904303141,1.17419101,177.43,177.42,8.8721]
[1752904303650,4.45419101,177.43,177.42,8.8721]
[1752904305548,1.17419101,177.43,177.42,8.8721]
[1752904305749,4.45419101,177.43,177.42,8.8721]
[1752904306249,4.45419101,177.43,177.42,5.6321]
[1752904306559,1.17419101,177.43,177.41,5.6322]
[1752904306852,4.45419101,177.42,177.41,5.6322]
[1752904308151,3.28,177.41,177.4,5.6326]
[1752904308356,4.45419101,177.41,177.4,5.6326]
[1752904309656,3.28,177.4,177.39,5.6329]
[1752904309849,4.45419101,177.4,177.39,5.6329]
[1752904310249,3.28,177.4,177.39,5.6329]
[1752904310453,4.45419101,177.4,177.39,5.6329]
[1752904311048,5.11487405,177.4,177.39,5.6329]
[1752904313653,5.11487405,177.4,177.39,8.8729]
[1752904319359,1.83487405,177.4,177.39,8.8729]
[1752904319658,102.92,177.42,177.4,3.31]
[1752904319659,1.83487405,177.41,177.4,3.31]
[1752904320054,1.83487405,177.41,177.4,8.9427]
[1752904320260,104.75487405,177.42,177.4,3.31]
[1752904320460,104.75487405,177.42,177.41,3.31]
[1752904321254,1.83487405,177.42,177.41,3.31]
[1752904321861,1.83487405,177.42,177.41,8.9424]
[1752904322161,4.98487405,177.42,177.41,8.9424]
[1752904323060,102.9,177.45,177.43,5.6317]
[1752904323258,102.9,177.45,177.44,3.31]
[1752904323564,107.88487405,177.45,177.44,3.31]
[1752904323761,107.88487405,177.45,177.44,8.9414]
[1752904324458,106.05,177.45,177.44,8.9414]
[1752904324661,104.73487405,177.45,177.44,8.9414]
[1752904325061,107.88487405,177.45,177.44,8.9414]
[1752904325961,104.73487405,177.45,177.44,8.9414]
[1752904326856,107.88487405,177.45,177.44,5.6314]
[1752904327059,3.15,177.44,177.42,3.31]
[1752904327251,4.98487405,177.43,177.42,3.31]
[1752904327857,4.98487405,177.43,177.42,8.9419]
[1752904328956,4.98487405,177.43,177.42,5.6319]
[1752904330458,4.98487405,177.43,177.42,8.9419]
[1752904332464,4.98487405,177.43,177.42,5.6319]
[1752904333164,4.98487405,177.43,177.42,8.9419]
[1752904334359,107.88487405,177.45,177.44,5.6314]
[1752904334561,109.7197481,177.45,177.44,8.9414]
[1752904335061,107.88487405,177.45,177.44,8.9414]
[1752904338660,107.88487405,177.45,177.44,5.6314]
[1752904339861,106.05,177.45,177.44,5.6314]
[1752904340165,107.88487405,177.45,177.44,8.9414]
[1752904340554,107.88487405,177.45,177.44,3.31]
[1752904342263,104.73487405,177.45,177.43,5.6316]
[1752904342465,3.15,177.44,177.43,5.6316]
[1752904342663,3.15,177.44,177.42,5.6319]
[1752904342967,107.84487405,177.43,177.42,5.6319]
[1752904343166,107.84487405,177.43,177.42,8.9419]
[1752904344167,107.84487405,177.43,177.42,3.31]
[1752904344563,3.19,177.42,177.41,8.6822]
[1752904353075,4.36393781,177.42,177.41,8.6822]
[1752904355373,1.17393781,177.42,177.41,8.6822]
[1752904355675,4.36393781,177.42,177.41,8.6822]
[1752904359869,4.36393781,177.42,177.41,3.05]
[1752904360069,3.19,177.41,177.4,3.05]
[1752904360279,3.19,177.4,177.38,3.05]
[1752904360480,3.19,177.38,177.36,3.05]
[1752904360779,104.01393781,177.37,177.36,3.05]
[1752904361279,107.20393781,177.37,177.36,3.05]
[1752904361873,107.20393781,177.37,177.36,8.684]
[1752904362981,107.8653575,177.37,177.36,8.684]
[1752904363380,106.03,177.37,177.36,5.634]
[1752904363576,106.03,177.37,177.36,8.684]
[1752904365882,106.03,177.37,177.36,3.05]
[1752904366379,3.19,177.36,177.35,3.05]
[1752904366578,5.0253575,177.36,177.34,8.6845]
[1752904366779,3.19,177.35,177.34,3.05]
[1752904367177,3.19,177.35,177.34,8.6846]
[1752904367375,5.0253575,177.35,177.34,8.6846]
[1752904368276,5.0253575,177.35,177.34,5.6346]
[1752904368471,5.0253575,177.35,177.33,8.6848]
[1752904368673,3.19,177.34,177.33,8.6848]
[1752904375684,3.19,177.34,177.32,5.6351]
[1752904375883,1.8353575,177.33,177.32,8.7151]
[1752904376083,5.0153575,177.33,177.32,8.7151]
[1752904377588,3.18,177.33,177.32,8.7151]
[1752904377794,5.0153575,177.33,177.32,8.7151]
[1752904377988,1.8353575,177.33,177.32,8.7151]
[1752904379585,104.6753575,177.34,177.33,8.7149]
[1752904380681,3.18,177.38,177.3,1.8353575]
[1752904380882,1.8353575,177.38,177.37,3.08]
[1752904381288,104.6753575,177.4,177.39,8.713]
[1752904381989,102.84,177.4,177.39,8.713]
[1752904382492,1.8353575,177.41,177.4,8.7127]
[1752904384491,5.0153575,177.41,177.4,8.7127]
[1752904387190,102.84,177.43,177.41,5.6321]
[1752904387395,1.8353575,177.42,177.41,5.6321]
[1752904387899,1.8353575,177.42,177.41,8.7121]
[1752904389302,5.0153575,177.42,177.41,8.7121]
[1752904391097,1.8353575,177.42,177.41,8.7121]
[1752904391296,102.84,177.43,177.42,8.7121]
[1752904393302,1.8353575,177.44,177.43,5.6318]
[1752904393502,5.0153575,177.44,177.43,8.7118]
[1752904394098,1.8353575,177.44,177.43,8.7118]
[1752904400499,107.8153575,177.46,177.45,5.6311]
[1752904400700,105.98,177.46,177.45,8.7111]
[1752904401005,102.8,177.46,177.45,8.7111]
[1752904401205,5.0153575,177.48,177.41,1.8353575]
[1752904401206,5.0153575,177.48,177.47,8.7105]
[1752904402306,104.6153575,177.49,177.48,5.6302]
[1752904402606,107.7953575,177.49,177.48,8.7102]
[1752904404214,3.18,177.48,177.46,3.04]
[1752904404504,4.8953575,177.47,177.46,3.04]
[1752904405205,4.8953575,177.47,177.46,8.6708]
[1752904410412,3.06,177.47,177.46,8.6708]
[1752904410615,105.84,177.49,177.48,8.6702]
[1752904410813,107.6753575,177.49,177.48,8.6702]
[1752904411110,104.6153575,177.49,177.48,8.6702]
[1752904411707,1.8353575,177.49,177.48,8.6702]
[1752904417213,4.8953575,177.49,177.48,8.6702]
[1752904420322,4.8953575,177.49,177.48,5.6302]
[1752904421622,4.8953575,177.49,177.48,8.6702]
[1752904422222,4.8953575,177.49,177.48,5.6302]
[1752904423227,4.8953575,177.49,177.48,8.6702]
[1752904426229,3.06,177.49,177.48,8.6702]
[1752904426429,4.8953575,177.49,177.48,8.6702]
[1752904426928,4.23287844,177.49,177.48,8.6702]
[1752904440241,1.17287844,177.49,177.48,8.6702]
[1752904440438,3.05,177.48,177.46,4.686161]
[1752904440635,3.05,177.46,177.43,3.24]
[1752904440835,4.22287844,177.44,177.43,3.24]
[1752904441033,4.22287844,177.44,177.43,8.8718]
[1752904441234,3.05,177.43,177.41,3.24]
[1752904441436,3.05,177.41,177.36,3.24]
[1752904441640,4.22287844,177.37,177.34,3.24]
[1752904441845,4.22287844,177.35,177.34,3.24]
[1752904442238,3.05,177.35,177.34,3.24]
[1752904442440,4.22287844,177.35,177.34,3.24]
[1752904442843,4.22287844,177.35,177.34,8.8746]
[1752904443041,4.8856133,177.35,177.34,8.8746]
[1752904445051,102.72,177.38,177.37,8.8737]
[1752904445253,104.5556133,177.38,177.37,8.8737]
[1752904445551,107.6056133,177.38,177.37,8.8737]
[1752904447547,3.05,177.37,177.35,3.24]
[1752904447747,4.8856133,177.36,177.35,3.24]
[1752904448552,1.8356133,177.36,177.35,8.874]
[1752904451455,1.8356133,177.37,177.36,5.634]
[1752904451655,1.8356133,177.37,177.36,8.874]
[1752904454957,4.8856133,177.39,177.38,8.8733]
[1752904455155,4.8856133,177.41,177.38,3.24]
[1752904456853,1.8356133,177.41,177.4,8.8727]
[1752904457060,104.5956133,177.42,177.35,1.8356133]
[1752904457261,1.8356133,177.42,177.41,3.24]
[1752904457459,4.8856133,177.42,177.41,3.24]
[1752904458861,4.8856133,177.42,177.41,8.8724]
[1752904465773,1.8356133,177.42,177.41,8.8724]
[1752904467161,4.8356133,177.43,177.42,8.6621]
[1752904474571,4.8356133,177.44,177.43,8.6615]
[1752904477979,1.8356133,177.44,177.43,8.6615]
[1752904478177,107.5956133,177.46,177.45,5.6311]
[1752904478381,107.5956133,177.46,177.45,8.6611]
[1752904478679,107.5956133,177.46,177.45,5.6311]
[1752904482687,107.5956133,177.46,177.45,8.6611]